{"text_format":"3","workbook":"xlsx","n_sheets":26,"sheets":["Início","1","2","3","4","5","6","7","8","9","10","11","12","13","14","15","16","17","18","19","20","21","22","23","24","Saiba mais"],"not_rendered":{"images":24,"defined_names":5,"pivot_tables":19},"read":"whole","date_system":"1900"}

{"sheet":"Início","index":0,"n_rows":5,"n_cols":1,"rows_kept":5}
["Bem-vindo(a)\nInstruções para leitores de tela: Aproveite ao máximo as Tabelas Dinâmicas. Uma Tabela Dinâmica simples fornece um resumo total dos seus dados, mas às vezes você precisa de respostas detalhadas para perguntas específicas. É aí que adicionar mais campos de colunas e campos de linha pode ajudar. \nAs instruções indicam para quais células navegar para o uso de um recurso ou leitura adicional.\nPara iniciar, pressione Ctrl+Page Down."]
["Aproveite ao máximo as \nTabelas Dinâmicas"]
["Uma Tabela Dinâmica simples fornece um resumo total dos seus dados,\nmas às vezes você precisa de respostas detalhadas para perguntas específicas.\nÉ aí que adicionar mais campos de colunas e campos de linha pode ajudar."]
["É BOM SABER\nVocê fez o primeiro tutorial? Se não fez, vá para Arquivo > Novo e procure por Crie sua primeira Tabela Dinâmica."]
["Volte ao início pressionando Ctrl+Home. Para iniciar o tour, pressione Ctrl+Page Down."]

{"sheet":"1","index":1,"n_rows":16,"n_cols":9,"rows_kept":16}
["No primeiro tutorial, apresentamos o conceito de Tabela Dinâmica. Também explicamos como um campo de linha pode ser usado como uma condição que divide um campo de valor.   "]
["As células H10 a I14 contêm uma Tabela Dinâmica que resume os dados nas células B8 a E16. A Tabela Dinâmica tem duas colunas: Comprador e Soma de Valor. A coluna Comprador contém os valores Pai, Mãe, Brenda e Total Geral; a coluna Soma de Valor contém os valores R$ 220, R$ 270, R$ 810 e R$ 1.300. A coluna Comprador contém um campo de linha, e a coluna Soma de Valor contém um campo de valor."]
["Para continuar com este tutorial, pressione Ctrl+Page Down. Para ir para a planilha anterior, pressione Ctrl+Page Up."]
[]
[]
[]
[]
[null,"Data","Comprador","Tipo","Valor"]
["Este exemplo mostra como o campo de linha...","2017-01-01","Pai","Presentes",{"v":95,"d":"R$ 95"}]
["...divide o campo de valor.","2017-01-15","Mãe","Alimentação",{"v":325,"d":"R$ 325"},null,null,"Comprador","Soma de Valor"]
[null,"2017-01-17","Mãe","Ingressos",{"v":250,"d":"R$ 250"},null,null,"Pai",{"v":220,"d":"R$ 220"}]
[null,"2017-01-21","Pai","Alimentação",{"v":125,"d":"R$ 125"},null,null,"Brenda",{"v":270,"d":"R$ 270"}]
[null,"2017-02-02","Mãe","Alimentação",{"v":235,"d":"R$ 235"},null,null,"Mãe",{"v":810,"d":"R$ 810"}]
[null,"2017-02-20","Brenda","Música",{"v":20,"d":"R$ 20"},null,null,"Grand Total",{"v":1300,"d":"R$ 1,300"}]
[null,"2017-02-25","Brenda","Ingressos",{"v":125,"d":"R$ 125"}]
[null,"2017-02-25","Brenda","Esportes",{"v":125,"d":"R$ 125"}]

{"sheet":"2","index":2,"n_rows":108,"n_cols":7,"rows_kept":108}
["Quando analisar uma Tabela Dinâmica pela primeira vez, talvez ache que precisa de mais respostas."]
["Na primeira análise da Tabela Dinâmica você pode ter perguntas como: \"Quando ocorreram essas compras?\", \"Em que cada pessoa gastou dinheiro?\", \"O que a Mãe comprou que foi tão caro?\"."]
["Neste exemplo, as células F11 a G15 mostram a mesma Tabela Dinâmica de duas colunas que antes. A coluna Comprador é um campo de linha e contém os valores Pai, Mãe, Brenda e Total Geral; a coluna Soma de Valor é um campo de valor e contém os valores R$ 220, R$ 270, R$ 810 e R$ 1.300. "]
["Para continuar com este tutorial, pressione Ctrl+Page Down. Para voltar à planilha anterior, pressione Ctrl+Page up."]
[]
[]
[]
[]
[]
[]
[{"$nulls":5},"Comprador","Soma de Valor"]
[{"$nulls":5},"Pai",{"v":220,"d":"R$ 220"}]
[{"$nulls":5},"Brenda",{"v":270,"d":"R$ 270"}]
[{"$nulls":5},"Mãe",{"v":810,"d":"R$ 810"}]
[{"$nulls":5},"Grand Total",{"v":1300,"d":"R$ 1,300"}]
{"$rows_empty":84}
[null,"Data","Comprador","Tipo","Valor"]
[null,"2017-01-01","Pai","Presentes",{"v":95,"d":"R$ 95"}]
[null,"2017-01-15","Mãe","Alimentação",{"v":325,"d":"R$ 325"}]
[null,"2017-01-17","Mãe","Ingressos",{"v":250,"d":"R$ 250"}]
[null,"2017-01-21","Pai","Alimentação",{"v":125,"d":"R$ 125"}]
[null,"2017-02-02","Mãe","Alimentação",{"v":235,"d":"R$ 235"}]
[null,"2017-02-20","Brenda","Música",{"v":20,"d":"R$ 20"}]
[null,"2017-02-25","Brenda","Ingressos",{"v":125,"d":"R$ 125"}]
[null,"2017-02-25","Brenda","Esportes",{"v":125,"d":"R$ 125"}]

{"sheet":"3","index":3,"n_rows":108,"n_cols":7,"rows_kept":108}
["Essas são boas perguntas, mas, por enquanto, vamos nos concentrar em apenas uma pergunta."]
["Em que cada pessoa gastou dinheiro?"]
["Para referência, as células F11 a G15 mostram a mesma Tabela Dinâmica de duas colunas de antes. A coluna Comprador é um campo de linha e contém os valores Pai, Mãe, Brenda e Total Geral; a coluna Soma de Valor é um campo de valor e contém os valores R$ 220, R$ 270, R$ 810 e R$ 1.300. "]
["Para continuar com este tutorial, pressione Ctrl+Page Down. Para voltar à planilha anterior, pressione Ctrl+Page up."]
[]
[]
[]
[]
[]
[]
[{"$nulls":5},"Comprador","Soma de Valor"]
[{"$nulls":5},"Brenda",{"v":270,"d":"R$ 270"}]
[{"$nulls":5},"Pai",{"v":220,"d":"R$ 220"}]
[{"$nulls":5},"Mãe",{"v":810,"d":"R$ 810"}]
[{"$nulls":5},"Grand Total",{"v":1300,"d":"R$ 1,300"}]
{"$rows_empty":84}
[null,"Data","Comprador","Tipo","Valor"]
[null,"2017-01-01","Pai","Presentes",{"v":95,"d":"R$ 95"}]
[null,"2017-01-15","Mãe","Alimentação",{"v":325,"d":"R$ 325"}]
[null,"2017-01-17","Mãe","Ingressos",{"v":250,"d":"R$ 250"}]
[null,"2017-01-21","Pai","Alimentação",{"v":125,"d":"R$ 125"}]
[null,"2017-02-02","Mãe","Alimentação",{"v":235,"d":"R$ 235"}]
[null,"2017-02-20","Brenda","Música",{"v":20,"d":"R$ 20"}]
[null,"2017-02-25","Brenda","Ingressos",{"v":125,"d":"R$ 125"}]
[null,"2017-02-25","Brenda","Esportes",{"v":125,"d":"R$ 125"}]

{"sheet":"4","index":4,"n_rows":108,"n_cols":9,"rows_kept":108}
["A última pergunta que fizemos foi: \"Em que cada pessoa gastou dinheiro?\"."]
["Respondemos adicionando um campo de coluna para Tipo. Como resultado, a Tabela Dinâmica agora tem cinco novas colunas que nos informam o tipo de compra feita por cada pessoa. "]
["Nossa nova Tabela Dinâmica agora vai da célula C10 até a célula I15, com colunas para Comprador, Alimentação, Música, Esportes, Ingressos, Presentes e Total Geral. Comprador e Total Geral são iguais a antes, e as novas colunas de detalhes estão entre elas."]
["Para continuar com este tutorial, pressione Ctrl+Page Down. Para voltar à planilha anterior, pressione Ctrl+Page up."]
[]
[]
[]
[]
[]
[null,null,"Soma de Valor","Tipo"]
[null,null,"Comprador","Alimentação","Música","Esportes","Ingressos","Presentes","Grand Total"]
[null,null,"Pai",{"v":125,"d":"R$ 125"},{"$nulls":3},{"v":95,"d":"R$ 95"},{"v":220,"d":"R$ 220"}]
[null,null,"Brenda",null,{"v":20,"d":"R$ 20"},{"v":125,"d":"R$ 125"},{"v":125,"d":"R$ 125"},null,{"v":270,"d":"R$ 270"}]
[null,null,"Mãe",{"v":560,"d":"R$ 560"},null,null,{"v":250,"d":"R$ 250"},null,{"v":810,"d":"R$ 810"}]
[null,null,"Grand Total",{"v":685,"d":"R$ 685"},{"v":20,"d":"R$ 20"},{"v":125,"d":"R$ 125"},{"v":375,"d":"R$ 375"},{"v":95,"d":"R$ 95"},{"v":1300,"d":"R$ 1,300"}]
{"$rows_empty":84}
[null,"Data","Comprador","Tipo","Valor"]
[null,"2017-01-01","Pai","Presentes",{"v":95,"d":"R$ 95"}]
[null,"2017-01-15","Mãe","Alimentação",{"v":325,"d":"R$ 325"}]
[null,"2017-01-17","Mãe","Ingressos",{"v":250,"d":"R$ 250"}]
[null,"2017-01-21","Pai","Alimentação",{"v":125,"d":"R$ 125"}]
[null,"2017-02-02","Mãe","Alimentação",{"v":235,"d":"R$ 235"}]
[null,"2017-02-20","Brenda","Música",{"v":20,"d":"R$ 20"}]
[null,"2017-02-25","Brenda","Ingressos",{"v":125,"d":"R$ 125"}]
[null,"2017-02-25","Brenda","Esportes",{"v":125,"d":"R$ 125"}]

{"sheet":"5","index":5,"n_rows":108,"n_cols":9,"rows_kept":108}
["Se for difícil compreender a Tabela Dinâmica, experimente o seguinte: Leia a partir da esquerda e de cima para baixo. No exemplo abaixo, Pai está na célula C12; Alimentação com R$ 125, na célula D12; Presentes com R$ 95, na célula E12; e o Total Geral de R$ 220, na célula I12. As linhas 13 e 14 mostram os detalhes para Mãe e Brenda, e a linha 15 mostra o Total Geral."]
["Para continuar com este tutorial, pressione Ctrl+Page Down. Para voltar à planilha anterior, pressione Ctrl+Page up."]
{"$rows_empty":7}
[null,null,"Soma de Valor","Tipo"]
[null,null,"Comprador","Alimentação","Presentes","Música","Esportes","Ingressos","Grand Total"]
[null,null,"Pai",{"v":125,"d":"R$ 125"},{"v":95,"d":"R$ 95"},{"$nulls":3},{"v":220,"d":"R$ 220"}]
[null,null,"Brenda",null,null,{"v":20,"d":"R$ 20"},{"v":125,"d":"R$ 125"},{"v":125,"d":"R$ 125"},{"v":270,"d":"R$ 270"}]
[null,null,"Mãe",{"v":560,"d":"R$ 560"},{"$nulls":3},{"v":250,"d":"R$ 250"},{"v":810,"d":"R$ 810"}]
[null,null,"Grand Total",{"v":685,"d":"R$ 685"},{"v":95,"d":"R$ 95"},{"v":20,"d":"R$ 20"},{"v":125,"d":"R$ 125"},{"v":375,"d":"R$ 375"},{"v":1300,"d":"R$ 1,300"}]
{"$rows_empty":84}
[null,"Data","Comprador","Tipo","Valor"]
[null,"2017-01-01","Pai","Presentes",{"v":95,"d":"R$ 95"}]
[null,"2017-01-15","Mãe","Alimentação",{"v":325,"d":"R$ 325"}]
[null,"2017-01-17","Mãe","Ingressos",{"v":250,"d":"R$ 250"}]
[null,"2017-01-21","Pai","Alimentação",{"v":125,"d":"R$ 125"}]
[null,"2017-02-02","Mãe","Alimentação",{"v":235,"d":"R$ 235"}]
[null,"2017-02-20","Brenda","Música",{"v":20,"d":"R$ 20"}]
[null,"2017-02-25","Brenda","Ingressos",{"v":125,"d":"R$ 125"}]
[null,"2017-02-25","Brenda","Esportes",{"v":125,"d":"R$ 125"}]

{"sheet":"6","index":6,"n_rows":3,"n_cols":1,"rows_kept":3}
["Não faça isso agora. Daqui a algumas etapas, você trabalhará com uma Tabela Dinâmica. A primeira coisa a que fazer é criar detalhes no campo de colunas. Faça isso colocando o campo Tipo na área de campo de colunas."]
["Uma imagem da Lista de Campos da Tabela Dinâmica mostra um cursor de seta arrastando o campo Tipo para a área Colunas."]
["Para continuar com este tutorial, pressione Ctrl+Page Down. Para ir para a planilha anterior, pressione Ctrl+Page Up."]

{"sheet":"7","index":7,"n_rows":108,"n_cols":8,"rows_kept":108}
["1. A Área da Tabela Dinâmica deste exemplo está nas células B13 a C17. Navegue para qualquer uma dessas células."]
["2. Pressione Alt+JP, LI para iniciar a Lista de Campos da Tabela Dinâmica. O foco usará por padrão a caixa de texto de Pesquisar: Edição “Pesquisar”"]
["3. Pressione as teclas de direção para selecionar o campo Tipo. Quando estiver selecionado, pressione a BARRA DE ESPAÇOS para adicionar o campo Tipo à área Linhas. "]
["4. Pressione Tab para selecionar o campo Tipo. Pressione Enter e, em seguida, pressione as teclas de direção para selecionar Mover para Rótulos de Coluna e pressione Enter para adicionar o campo Tipo à área Colunas. Pressione ALT+JP+LI para sair do painel Campos da Tabela Dinâmica."]
["Para continuar com este tutorial, pressione CTRL+PAGE DOWN. Para ir para a planilha anterior, pressione Ctrl+Page Up."]
[]
[]
[]
[{"$nulls":7},{"$f":"IF(AND($B$14=\"Comprador\",$H$17=810),\"Muito bem! Você colocou seu\",\" \")","v":" "}]
[{"$nulls":7},{"$f":"IF(AND($B$14=\"Comprador\",$H$17=810),\"primeiro campo de coluna. Clique\",\" \")","v":" "}]
[{"$nulls":7},{"$f":"IF(AND($B$14=\"Comprador\",$H$17=810),\"em Próximo para continuar...\",\" \")","v":" "}]
[]
[null,"Comprador","Soma de Valor"]
[null,"Pai",{"v":220,"d":"R$ 220"}]
[null,"Brenda",{"v":270,"d":"R$ 270"}]
[null,"Mãe",{"v":810,"d":"R$ 810"}]
[null,"Grand Total",{"v":1300,"d":"R$ 1,300"}]
{"$rows_empty":82}
[null,"Data","Comprador","Tipo","Valor"]
[null,"2017-01-01","Pai","Presentes",{"v":95,"d":"R$ 95"}]
[null,"2017-01-15","Mãe","Alimentação",{"v":325,"d":"R$ 325"}]
[null,"2017-01-17","Mãe","Ingressos",{"v":250,"d":"R$ 250"}]
[null,"2017-01-21","Pai","Alimentação",{"v":125,"d":"R$ 125"}]
[null,"2017-02-02","Mãe","Alimentação",{"v":235,"d":"R$ 235"}]
[null,"2017-02-20","Brenda","Música",{"v":20,"d":"R$ 20"}]
[null,"2017-02-25","Brenda","Ingressos",{"v":125,"d":"R$ 125"}]
[null,"2017-02-25","Brenda","Esportes",{"v":125,"d":"R$ 125"}]

{"sheet":"8","index":8,"n_rows":108,"n_cols":9,"rows_kept":108}
["Vamos revisar a Tabela Dinâmica que você acaba de criar, mas desta vez adicionamos algumas cores especiais para diferenciar os campos de valor, de linha e de coluna."]
["O campo de linha vai da célula C10 à C13, e está marcado em amarelo."]
["O campo de coluna vai da célula D9 à H10, e está marcado em laranja."]
["O campo de valor vai da célula D11 à H13, e está marcado em azul."]
["Para continuar com este tutorial, pressione Ctrl+Page Down. Para voltar à planilha anterior, pressione Ctrl+Page up."]
[]
[]
[]
[null,null,"Soma de Valor","Tipo"]
[null,null,"Comprador","Alimentação","Presentes","Música","Esportes","Ingressos","Grand Total"]
[null,null,"Pai",{"v":125,"d":"R$ 125"},{"v":95,"d":"R$ 95"},{"$nulls":3},{"v":220,"d":"R$ 220"}]
[null,null,"Brenda",null,null,{"v":20,"d":"R$ 20"},{"v":125,"d":"R$ 125"},{"v":125,"d":"R$ 125"},{"v":270,"d":"R$ 270"}]
[null,null,"Mãe",{"v":560,"d":"R$ 560"},{"$nulls":3},{"v":250,"d":"R$ 250"},{"v":810,"d":"R$ 810"}]
[null,null,"Grand Total",{"v":685,"d":"R$ 685"},{"v":95,"d":"R$ 95"},{"v":20,"d":"R$ 20"},{"v":125,"d":"R$ 125"},{"v":375,"d":"R$ 375"},{"v":1300,"d":"R$ 1,300"}]
{"$rows_empty":85}
[null,"Data","Comprador","Tipo","Valor"]
[null,"2017-01-01","Pai","Presentes",{"v":95,"d":"R$ 95"}]
[null,"2017-01-15","Mãe","Alimentação",{"v":325,"d":"R$ 325"}]
[null,"2017-01-17","Mãe","Ingressos",{"v":250,"d":"R$ 250"}]
[null,"2017-01-21","Pai","Alimentação",{"v":125,"d":"R$ 125"}]
[null,"2017-02-02","Mãe","Alimentação",{"v":235,"d":"R$ 235"}]
[null,"2017-02-20","Brenda","Música",{"v":20,"d":"R$ 20"}]
[null,"2017-02-25","Brenda","Ingressos",{"v":125,"d":"R$ 125"}]
[null,"2017-02-25","Brenda","Esportes",{"v":125,"d":"R$ 125"}]

{"sheet":"9","index":9,"n_rows":3,"n_cols":1,"rows_kept":3}
["Veja outra maneira de pensar nisso: O campo de linha está à esquerda, e o de coluna na parte superior. Cada um deles fornece uma condição ao campo de valor, que os soma."]
["Uma imagem conceitual mostra uma área retangular em quatro seções com o campo de linha na parte inferior esquerda em amarelo, o campo de coluna na parte superior direita em laranja, e o campo de valor na parte inferior direita em azul."]
["Para continuar com este tutorial, pressione Ctrl+Page Down. Para ir para a planilha anterior, pressione Ctrl+Page Up."]

{"sheet":"10","index":10,"n_rows":3,"n_cols":1,"rows_kept":3}
["Pense dessa forma ao usar a lista de campos. O campo de linha está à esquerda, e o de coluna na parte superior. Cada um deles fornece uma condição ao campo de valor, que os soma."]
["Uma imagem conceitual mostra a Campos da Tabela Dinâmica com o campo de linha na parte inferior esquerda em amarelo, o campo de coluna na parte superior direita em laranja, e o campo de valor na parte inferior direita em azul."]
["Para continuar com este tutorial, pressione Ctrl+Page Down. Para ir para a planilha anterior, pressione Ctrl+Page Up."]

{"sheet":"11","index":11,"n_rows":121,"n_cols":24,"rows_kept":121}
["Preste atenção ao seguinte: Se um campo de coluna adicionar várias colunas a uma Tabela Dinâmica, ela ficará muito larga. "]
["Neste exemplo, a Tabela Dinâmica vai da célula C10 à X15, já que o campo de coluna adicionou 20 novas colunas. São muitas colunas! Isso faz com que as pessoas tenham que rolar muito a tela..."]
["Para continuar com este tutorial, pressione Ctrl+Page Down. Para voltar à planilha anterior, pressione Ctrl+Page up."]
[]
[]
[]
[]
[]
[]
[null,null,"Soma de Valor","Tipo"]
[null,null,"Comprador","Alimentação","Aulas de Música","Combustível","Conta de Luz","Dentistas","Eletrônicos","Esportes","Estacionamento","Impostos","Ingressos","Jantar Fora","Livros","Médicos","Música","Plano de Saúde","Roupas","Seguro do Automóvel","Seguro Residencial","Tarifa Aérea","Tarifa do Clube","Grand Total"]
[null,null,"Pai",{"$nulls":6},{"v":1000,"d":"R$ 1,000"},null,{"v":500,"d":"R$ 500"},{"$nulls":9},{"v":500,"d":"R$ 500"},null,{"v":2000,"d":"R$ 2,000"}]
[null,null,"Brenda",null,{"v":250,"d":"R$ 250"},{"$nulls":3},{"v":125,"d":"R$ 125"},null,{"v":20,"d":"R$ 20"},null,{"v":125,"d":"R$ 125"},{"v":20,"d":"R$ 20"},{"v":250,"d":"R$ 250"},null,{"v":20,"d":"R$ 20"},null,{"v":125,"d":"R$ 125"},{"$nulls":4},{"v":935,"d":"R$ 935"}]
[null,null,"Mãe",{"v":470,"d":"R$ 470"},null,{"v":74,"d":"R$ 74"},{"v":70,"d":"R$ 70"},{"v":235,"d":"R$ 235"},{"$nulls":7},{"v":74,"d":"R$ 74"},null,{"v":70,"d":"R$ 70"},null,{"v":74,"d":"R$ 74"},{"v":235,"d":"R$ 235"},null,{"v":125,"d":"R$ 125"},{"v":1427,"d":"R$ 1,427"}]
[null,null,"Grand Total",{"v":470,"d":"R$ 470"},{"v":250,"d":"R$ 250"},{"v":74,"d":"R$ 74"},{"v":70,"d":"R$ 70"},{"v":235,"d":"R$ 235"},{"v":125,"d":"R$ 125"},{"v":1000,"d":"R$ 1,000"},{"v":20,"d":"R$ 20"},{"v":500,"d":"R$ 500"},{"v":125,"d":"R$ 125"},{"v":20,"d":"R$ 20"},{"v":250,"d":"R$ 250"},{"v":74,"d":"R$ 74"},{"v":20,"d":"R$ 20"},{"v":70,"d":"R$ 70"},{"v":125,"d":"R$ 125"},{"v":74,"d":"R$ 74"},{"v":235,"d":"R$ 235"},{"v":500,"d":"R$ 500"},{"v":125,"d":"R$ 125"},{"v":4362,"d":"R$ 4,362"}]
{"$rows_empty":84}
[null,"Data","Comprador","Tipo","Valor"]
[null,"2017-01-17","Pai","Esportes",{"v":1000,"d":"R$ 1,000"}]
[null,"2017-01-17","Pai","Tarifa Aérea",{"v":500,"d":"R$ 500"}]
[null,"2017-01-17","Pai","Impostos",{"v":500,"d":"R$ 500"}]
[null,"2017-02-20","Brenda","Música",{"v":20,"d":"R$ 20"}]
[null,"2017-02-25","Brenda","Ingressos",{"v":125,"d":"R$ 125"}]
[null,"2017-01-21","Brenda","Livros",{"v":250,"d":"R$ 250"}]
[null,"2017-02-20","Brenda","Jantar Fora",{"v":20,"d":"R$ 20"}]
[null,"2017-02-25","Brenda","Roupas",{"v":125,"d":"R$ 125"}]
[null,"2017-01-21","Brenda","Aulas de Música",{"v":250,"d":"R$ 250"}]
[null,"2017-02-20","Brenda","Estacionamento",{"v":20,"d":"R$ 20"}]
[null,"2017-02-25","Brenda","Eletrônicos",{"v":125,"d":"R$ 125"}]
[null,"2017-01-01","Mãe","Combustível",{"v":74,"d":"R$ 74"}]
[null,"2017-01-15","Mãe","Alimentação",{"v":235,"d":"R$ 235"}]
[null,"2017-01-21","Mãe","Tarifa do Clube",{"v":125,"d":"R$ 125"}]
[null,"2017-02-02","Mãe","Alimentação",{"v":235,"d":"R$ 235"}]
[null,"2017-01-01","Mãe","Médicos",{"v":74,"d":"R$ 74"}]
[null,"2017-01-15","Mãe","Conta de Luz",{"v":70,"d":"R$ 70"}]
[null,"2017-02-02","Mãe","Dentistas",{"v":235,"d":"R$ 235"}]
[null,"2017-01-01","Mãe","Seguro do Automóvel",{"v":74,"d":"R$ 74"}]
[null,"2017-01-15","Mãe","Plano de Saúde",{"v":70,"d":"R$ 70"}]
[null,"2017-02-02","Mãe","Seguro Residencial",{"v":235,"d":"R$ 235"}]

{"sheet":"12","index":12,"n_rows":119,"n_cols":5,"rows_kept":119}
["Mas há uma alternativa: Você pode usar um segundo campo de linha em vez disso. Um segundo campo de linha aparecerá recuado sob o primeiro campo de linha."]
["Neste exemplo, há uma Tabela Dinâmica nas células D8 a E32. Ela mostra Pai, Brenda e Mãe como os primeiros campos de linha na coluna D. Em seguida, os tipos de gastos como os segundos campos de linha, com itens como Esportes, Tarifa Aérea, Jantar Fora, etc."]
["É BOM SABER\nUm segundo campo de linha orienta uma Tabela Dinâmica verticalmente, ao invés de horizontalmente. Algumas pessoas acham mais fácil ler Tabelas Dinâmicas verticais, porque não é preciso rolar muito a tela de uma lado a outro."]
["SOBRE O EXCEL\nAlgumas vezes chama-se um segundo campo de linha de \"campo de linha secundário\"."]
["Para continuar com este tutorial, pressione Ctrl+Page Down. Para voltar à planilha anterior, pressione Ctrl+Page up."]
[]
[]
[{"$nulls":3},"Row Labels","Soma de Valor"]
[{"$nulls":3},"Pai",{"v":2000,"d":"R$ 2,000"}]
[{"$nulls":3},"Esportes",{"v":1000,"d":"R$ 1,000"}]
[{"$nulls":3},"Impostos",{"v":500,"d":"R$ 500"}]
[{"$nulls":3},"Tarifa Aérea",{"v":500,"d":"R$ 500"}]
[{"$nulls":3},"Brenda",{"v":935,"d":"R$ 935"}]
[{"$nulls":3},"Livros",{"v":250,"d":"R$ 250"}]
[{"$nulls":3},"Música",{"v":20,"d":"R$ 20"}]
[{"$nulls":3},"Ingressos",{"v":125,"d":"R$ 125"}]
[{"$nulls":3},"Jantar Fora",{"v":20,"d":"R$ 20"}]
[{"$nulls":3},"Estacionamento",{"v":20,"d":"R$ 20"}]
[{"$nulls":3},"Eletrônicos",{"v":125,"d":"R$ 125"}]
[{"$nulls":3},"Roupas",{"v":125,"d":"R$ 125"}]
[{"$nulls":3},"Aulas de Música",{"v":250,"d":"R$ 250"}]
[{"$nulls":3},"Mãe",{"v":1427,"d":"R$ 1,427"}]
[{"$nulls":3},"Alimentação",{"v":470,"d":"R$ 470"}]
[{"$nulls":3},"Combustível",{"v":74,"d":"R$ 74"}]
[{"$nulls":3},"Conta de Luz",{"v":70,"d":"R$ 70"}]
[{"$nulls":3},"Médicos",{"v":74,"d":"R$ 74"}]
[{"$nulls":3},"Dentistas",{"v":235,"d":"R$ 235"}]
[{"$nulls":3},"Seguro do Automóvel",{"v":74,"d":"R$ 74"}]
[{"$nulls":3},"Tarifa do Clube",{"v":125,"d":"R$ 125"}]
[{"$nulls":3},"Plano de Saúde",{"v":70,"d":"R$ 70"}]
[{"$nulls":3},"Seguro Residencial",{"v":235,"d":"R$ 235"}]
[{"$nulls":3},"Grand Total",{"v":4362,"d":"R$ 4,362"}]
{"$rows_empty":65}
[null,"Data","Comprador","Tipo","Valor"]
[null,"2017-01-17","Pai","Esportes",{"v":1000,"d":"R$ 1,000"}]
[null,"2017-01-17","Pai","Tarifa Aérea",{"v":500,"d":"R$ 500"}]
[null,"2017-01-17","Pai","Impostos",{"v":500,"d":"R$ 500"}]
[null,"2017-02-20","Brenda","Música",{"v":20,"d":"R$ 20"}]
[null,"2017-02-25","Brenda","Ingressos",{"v":125,"d":"R$ 125"}]
[null,"2017-01-21","Brenda","Livros",{"v":250,"d":"R$ 250"}]
[null,"2017-02-20","Brenda","Jantar Fora",{"v":20,"d":"R$ 20"}]
[null,"2017-02-25","Brenda","Roupas",{"v":125,"d":"R$ 125"}]
[null,"2017-01-21","Brenda","Aulas de Música",{"v":250,"d":"R$ 250"}]
[null,"2017-02-20","Brenda","Estacionamento",{"v":20,"d":"R$ 20"}]
[null,"2017-02-25","Brenda","Eletrônicos",{"v":125,"d":"R$ 125"}]
[null,"2017-01-01","Mãe","Combustível",{"v":74,"d":"R$ 74"}]
[null,"2017-01-15","Mãe","Alimentação",{"v":235,"d":"R$ 235"}]
[null,"2017-01-21","Mãe","Tarifa do Clube",{"v":125,"d":"R$ 125"}]
[null,"2017-02-02","Mãe","Alimentação",{"v":235,"d":"R$ 235"}]
[null,"2017-01-01","Mãe","Médicos",{"v":74,"d":"R$ 74"}]
[null,"2017-01-15","Mãe","Conta de Luz",{"v":70,"d":"R$ 70"}]
[null,"2017-02-02","Mãe","Dentistas",{"v":235,"d":"R$ 235"}]
[null,"2017-01-01","Mãe","Seguro do Automóvel",{"v":74,"d":"R$ 74"}]
[null,"2017-01-15","Mãe","Plano de Saúde",{"v":70,"d":"R$ 70"}]
[null,"2017-02-02","Mãe","Seguro Residencial",{"v":235,"d":"R$ 235"}]

{"sheet":"13","index":13,"n_rows":3,"n_cols":1,"rows_kept":3}
["Na próxima planilha você adicionará um segundo campo de linha. E você faz isso colocando o campo Tipo sob o campo Comprador no campo de linha."]
["A imagem de Lista de Campos da Tabela Dinâmica mostra um cursor de seta arrastando o campo Tipo para a área Linhas."]
["Para continuar com este tutorial, pressione Ctrl+Page Down. Para ir para a planilha anterior, pressione Ctrl+Page Up."]

{"sheet":"14","index":14,"n_rows":122,"n_cols":9,"rows_kept":122}
["1. A Área da Tabela Dinâmica deste exemplo está nas células B13 a C17. Navegue para qualquer uma dessas células. "]
["2. Pressione Alt+JP, LI para iniciar a Lista de Campos da Tabela Dinâmica. O foco usará por padrão a caixa de texto de Pesquisar: \"Digite palavras para Pesquisarr para edição\". Não digite nada, em vez disso, pressione Tab uma vez. OBSERVAÇÃO: se a lista de campos não iniciar, pressione Alt+JP, LI novamente."]
["3. Pressione as teclas de direção para ir para o campo Tipo. Pressione a BARRA DE ESPAÇO para adicionar o campo Tipo à área Linhas. "]
["4. Pressione a tecla ESC para sair do painel de Campos da Tabela Dinâmica. "]
["Para continuar com este tutorial, pressione Ctrl+Page Down. Para ir para a planilha anterior, pressione Ctrl+Page Up.",{"$nulls":7},{"$f":"IF(AND($B$15=\"Esportes\",$C$36=125),\"Boa! Você adicionou um\",\" \")","v":" "}]
[{"$nulls":8},{"$f":"IF(AND($B$15=\"Esportes\",$C$36=125),\"segundo campo de linha à\",\" \")","v":" "}]
[{"$nulls":8},{"$f":"IF(AND($B$15=\"Esportes\",$C$36=125),\"Tabela Dinâmica. Role para\",\" \")","v":" "}]
[{"$nulls":8},{"$f":"IF(AND($B$15=\"Esportes\",$C$36=125),\"baixo e clique em Próximo…\",\" \")","v":" "}]
[]
[]
[]
[]
[null,"Row Labels","Soma de Valor"]
[null,"Pai",{"v":2000,"d":"R$ 2,000"}]
[null,"Brenda",{"v":935,"d":"R$ 935"}]
[null,"Mãe",{"v":1427,"d":"R$ 1,427"}]
[null,"Grand Total",{"v":4362,"d":"R$ 4,362"}]
{"$rows_empty":83}
[null,"Data","Comprador","Tipo","Valor"]
[null,"2017-01-17","Pai","Esportes",{"v":1000,"d":"R$ 1,000"}]
[null,"2017-01-17","Pai","Tarifa Aérea",{"v":500,"d":"R$ 500"}]
[null,"2017-01-17","Pai","Impostos",{"v":500,"d":"R$ 500"}]
[null,"2017-02-20","Brenda","Música",{"v":20,"d":"R$ 20"}]
[null,"2017-02-25","Brenda","Ingressos",{"v":125,"d":"R$ 125"}]
[null,"2017-01-21","Brenda","Livros",{"v":250,"d":"R$ 250"}]
[null,"2017-02-20","Brenda","Jantar Fora",{"v":20,"d":"R$ 20"}]
[null,"2017-02-25","Brenda","Roupas",{"v":125,"d":"R$ 125"}]
[null,"2017-01-21","Brenda","Aulas de Música",{"v":250,"d":"R$ 250"}]
[null,"2017-02-20","Brenda","Estacionamento",{"v":20,"d":"R$ 20"}]
[null,"2017-02-25","Brenda","Eletrônicos",{"v":125,"d":"R$ 125"}]
[null,"2017-01-01","Mãe","Combustível",{"v":74,"d":"R$ 74"}]
[null,"2017-01-15","Mãe","Alimentação",{"v":235,"d":"R$ 235"}]
[null,"2017-01-21","Mãe","Tarifa do Clube",{"v":125,"d":"R$ 125"}]
[null,"2017-02-02","Mãe","Alimentação",{"v":235,"d":"R$ 235"}]
[null,"2017-01-01","Mãe","Médicos",{"v":74,"d":"R$ 74"}]
[null,"2017-01-15","Mãe","Conta de Luz",{"v":70,"d":"R$ 70"}]
[null,"2017-02-02","Mãe","Dentistas",{"v":235,"d":"R$ 235"}]
[null,"2017-01-01","Mãe","Seguro do Automóvel",{"v":74,"d":"R$ 74"}]
[null,"2017-01-15","Mãe","Plano de Saúde",{"v":70,"d":"R$ 70"}]
[null,"2017-02-02","Mãe","Seguro Residencial",{"v":235,"d":"R$ 235"}]

{"sheet":"15","index":15,"n_rows":121,"n_cols":7,"rows_kept":121}
["Se precisar simplificar a Tabela Dinâmica, recolha os dados do segundo campo de linha para que fique oculto. "]
["A área da Tabela Dinâmica para este exemplo está entre as células F7 e G31. Selecione a célula F8 para escolher o primeiro campo de linha para Pai. Em seguida, pressione Alt+JP > X para expandir o segundo campo, ou R1 para recolhê-lo."]
["Para continuar com este tutorial, pressione CTRL+PAGE DOWN. Para voltar à planilha anterior, pressione Ctrl+Page up."]
[]
[]
[{"$nulls":5},{"$f":"IF(AND($F$9=\"Brenda\",$G$9=935),\"Muito bom!\",\" \")","v":" "}]
[{"$nulls":5},"Row Labels","Soma de Valor"]
[{"$nulls":5},"Pai",{"v":2000,"d":"R$ 2,000"}]
[{"$nulls":5},"Esportes",{"v":1000,"d":"R$ 1,000"}]
[{"$nulls":5},"Impostos",{"v":500,"d":"R$ 500"}]
[{"$nulls":5},"Tarifa Aérea",{"v":500,"d":"R$ 500"}]
[{"$nulls":5},"Brenda",{"v":935,"d":"R$ 935"}]
[{"$nulls":5},"Livros",{"v":250,"d":"R$ 250"}]
[{"$nulls":5},"Jantar Fora",{"v":20,"d":"R$ 20"}]
[{"$nulls":5},"Eletrônicos",{"v":125,"d":"R$ 125"}]
[{"$nulls":5},"Música",{"v":20,"d":"R$ 20"}]
[{"$nulls":5},"Estacionamento",{"v":20,"d":"R$ 20"}]
[{"$nulls":5},"Ingressos",{"v":125,"d":"R$ 125"}]
[{"$nulls":5},"Roupas",{"v":125,"d":"R$ 125"}]
[{"$nulls":5},"Aulas de Música",{"v":250,"d":"R$ 250"}]
[{"$nulls":5},"Mãe",{"v":1427,"d":"R$ 1,427"}]
[{"$nulls":5},"Seguro do Automóvel",{"v":74,"d":"R$ 74"}]
[{"$nulls":5},"Dentistas",{"v":235,"d":"R$ 235"}]
[{"$nulls":5},"Conta de Luz",{"v":70,"d":"R$ 70"}]
[{"$nulls":5},"Alimentação",{"v":470,"d":"R$ 470"}]
[{"$nulls":5},"Combustível",{"v":74,"d":"R$ 74"}]
[{"$nulls":5},"Médicos",{"v":74,"d":"R$ 74"}]
[{"$nulls":5},"Tarifa do Clube",{"v":125,"d":"R$ 125"}]
[{"$nulls":5},"Plano de Saúde",{"v":70,"d":"R$ 70"}]
[{"$nulls":5},"Seguro Residencial",{"v":235,"d":"R$ 235"}]
[{"$nulls":5},"Grand Total",{"v":4362,"d":"R$ 4,362"}]
{"$rows_empty":68}
[null,"Data","Comprador","Tipo","Valor"]
[null,"2017-01-17","Pai","Esportes",{"v":1000,"d":"R$ 1,000"}]
[null,"2017-01-17","Pai","Tarifa Aérea",{"v":500,"d":"R$ 500"}]
[null,"2017-01-17","Pai","Impostos",{"v":500,"d":"R$ 500"}]
[null,"2017-02-20","Brenda","Música",{"v":20,"d":"R$ 20"}]
[null,"2017-02-25","Brenda","Ingressos",{"v":125,"d":"R$ 125"}]
[null,"2017-01-21","Brenda","Livros",{"v":250,"d":"R$ 250"}]
[null,"2017-02-20","Brenda","Jantar Fora",{"v":20,"d":"R$ 20"}]
[null,"2017-02-25","Brenda","Roupas",{"v":125,"d":"R$ 125"}]
[null,"2017-01-21","Brenda","Aulas de Música",{"v":250,"d":"R$ 250"}]
[null,"2017-02-20","Brenda","Estacionamento",{"v":20,"d":"R$ 20"}]
[null,"2017-02-25","Brenda","Eletrônicos",{"v":125,"d":"R$ 125"}]
[null,"2017-01-01","Mãe","Combustível",{"v":74,"d":"R$ 74"}]
[null,"2017-01-15","Mãe","Alimentação",{"v":235,"d":"R$ 235"}]
[null,"2017-01-21","Mãe","Tarifa do Clube",{"v":125,"d":"R$ 125"}]
[null,"2017-02-02","Mãe","Alimentação",{"v":235,"d":"R$ 235"}]
[null,"2017-01-01","Mãe","Médicos",{"v":74,"d":"R$ 74"}]
[null,"2017-01-15","Mãe","Conta de Luz",{"v":70,"d":"R$ 70"}]
[null,"2017-02-02","Mãe","Dentistas",{"v":235,"d":"R$ 235"}]
[null,"2017-01-01","Mãe","Seguro do Automóvel",{"v":74,"d":"R$ 74"}]
[null,"2017-01-15","Mãe","Plano de Saúde",{"v":70,"d":"R$ 70"}]
[null,"2017-02-02","Mãe","Seguro Residencial",{"v":235,"d":"R$ 235"}]

{"sheet":"16","index":16,"n_rows":121,"n_cols":7,"rows_kept":121}
["Você também pode recolher ou expandir o segundo campo de linha inteiro, simplificando ainda mais a Tabela Dinâmica."]
["Esta é a chave"]
["Selecione o intervalo de dados da Tabela Dinâmica nas células F7 a G31, depois pressione Alt+JP, R1 para recolher todo o grupo. Ou pressione Alt+JP, X para expandir todo o grupo."]
["Para continuar com este tutorial, pressione Ctrl+Page Down. Para voltar à planilha anterior, pressione Ctrl+Page up."]
[]
[{"$nulls":5},{"$f":"IF(AND($F$9=\"Brenda\",$G$9=935),\"Bom trabalho!\",\" \")","v":" "}]
[{"$nulls":5},"Row Labels","Soma de Valor"]
[{"$nulls":5},"Pai",{"v":2000,"d":"R$ 2,000"}]
[{"$nulls":5},"Esportes",{"v":1000,"d":"R$ 1,000"}]
[{"$nulls":5},"Impostos",{"v":500,"d":"R$ 500"}]
[{"$nulls":5},"Tarifa Aérea",{"v":500,"d":"R$ 500"}]
[{"$nulls":5},"Brenda",{"v":935,"d":"R$ 935"}]
[{"$nulls":5},"Livros",{"v":250,"d":"R$ 250"}]
[{"$nulls":5},"Jantar Fora",{"v":20,"d":"R$ 20"}]
[{"$nulls":5},"Eletrônicos",{"v":125,"d":"R$ 125"}]
[{"$nulls":5},"Música",{"v":20,"d":"R$ 20"}]
[{"$nulls":5},"Estacionamento",{"v":20,"d":"R$ 20"}]
[{"$nulls":5},"Ingressos",{"v":125,"d":"R$ 125"}]
[{"$nulls":5},"Roupas",{"v":125,"d":"R$ 125"}]
[{"$nulls":5},"Aulas de Música",{"v":250,"d":"R$ 250"}]
[{"$nulls":5},"Mãe",{"v":1427,"d":"R$ 1,427"}]
[{"$nulls":5},"Seguro do Automóvel",{"v":74,"d":"R$ 74"}]
[{"$nulls":5},"Dentistas",{"v":235,"d":"R$ 235"}]
[{"$nulls":5},"Conta de Luz",{"v":70,"d":"R$ 70"}]
[{"$nulls":5},"Alimentação",{"v":470,"d":"R$ 470"}]
[{"$nulls":5},"Combustível",{"v":74,"d":"R$ 74"}]
[{"$nulls":5},"Médicos",{"v":74,"d":"R$ 74"}]
[{"$nulls":5},"Tarifa do Clube",{"v":125,"d":"R$ 125"}]
[{"$nulls":5},"Plano de Saúde",{"v":70,"d":"R$ 70"}]
[{"$nulls":5},"Seguro Residencial",{"v":235,"d":"R$ 235"}]
[{"$nulls":5},"Grand Total",{"v":4362,"d":"R$ 4,362"}]
{"$rows_empty":68}
[null,"Data","Comprador","Tipo","Valor"]
[null,"2017-01-17","Pai","Esportes",{"v":1000,"d":"R$ 1,000"}]
[null,"2017-01-17","Pai","Tarifa Aérea",{"v":500,"d":"R$ 500"}]
[null,"2017-01-17","Pai","Impostos",{"v":500,"d":"R$ 500"}]
[null,"2017-02-20","Brenda","Música",{"v":20,"d":"R$ 20"}]
[null,"2017-02-25","Brenda","Ingressos",{"v":125,"d":"R$ 125"}]
[null,"2017-01-21","Brenda","Livros",{"v":250,"d":"R$ 250"}]
[null,"2017-02-20","Brenda","Jantar Fora",{"v":20,"d":"R$ 20"}]
[null,"2017-02-25","Brenda","Roupas",{"v":125,"d":"R$ 125"}]
[null,"2017-01-21","Brenda","Aulas de Música",{"v":250,"d":"R$ 250"}]
[null,"2017-02-20","Brenda","Estacionamento",{"v":20,"d":"R$ 20"}]
[null,"2017-02-25","Brenda","Eletrônicos",{"v":125,"d":"R$ 125"}]
[null,"2017-01-01","Mãe","Combustível",{"v":74,"d":"R$ 74"}]
[null,"2017-01-15","Mãe","Alimentação",{"v":235,"d":"R$ 235"}]
[null,"2017-01-21","Mãe","Tarifa do Clube",{"v":125,"d":"R$ 125"}]
[null,"2017-02-02","Mãe","Alimentação",{"v":235,"d":"R$ 235"}]
[null,"2017-01-01","Mãe","Médicos",{"v":74,"d":"R$ 74"}]
[null,"2017-01-15","Mãe","Conta de Luz",{"v":70,"d":"R$ 70"}]
[null,"2017-02-02","Mãe","Dentistas",{"v":235,"d":"R$ 235"}]
[null,"2017-01-01","Mãe","Seguro do Automóvel",{"v":74,"d":"R$ 74"}]
[null,"2017-01-15","Mãe","Plano de Saúde",{"v":70,"d":"R$ 70"}]
[null,"2017-02-02","Mãe","Seguro Residencial",{"v":235,"d":"R$ 235"}]

{"sheet":"17","index":17,"n_rows":107,"n_cols":13,"rows_kept":107}
["Você também pode ter mais de um campo de coluna. Eles também podem ser recolhidos ou expandidos."]
["A Tabela Dinâmica deste exemplo vai da célula B13 à M19. Neste caso, temos uma categoria Tipo na seção Colunas, que inclui itens para Alimentação e Serviços Públicos."]
["EXPERIMENTE ISTO\nSelecione Alimentação na célula C14 e pressione Alt+JP, R1 para recolher todo o campo. ALT+JP, X o expande."]
["Para continuar com este tutorial, pressione Ctrl+Page Down. Para ir para a planilha anterior, pressione Ctrl+Page Up."]
{"$rows_empty":7}
[null,null,{"$f":"IF(AND($C$16=398,$D$15=\"Jan\"),\"Ótimo trabalho!\",\" \")","v":" "}]
[null,"Soma de Valor","Column Labels"]
[null,null,"Alimentação",{"$nulls":3},"Alimentação Total","Serviços Públicos",{"$nulls":3},"Serviços Públicos Total","Grand Total"]
[null,"Row Labels","Jan","Fev","Mar","Abr",null,"Jan","Fev","Mar","Abr"]
[null,"Brenda",{"v":74,"d":"R$ 74"},{"v":74,"d":"R$ 74"},{"v":125,"d":"R$ 125"},{"v":125,"d":"R$ 125"},{"v":398,"d":"R$ 398"},{"$nulls":5},{"v":398,"d":"R$ 398"}]
[null,"Pai",{"v":235,"d":"R$ 235"},{"v":235,"d":"R$ 235"},{"v":235,"d":"R$ 235"},{"v":74,"d":"R$ 74"},{"v":779,"d":"R$ 779"},{"$nulls":5},{"v":779,"d":"R$ 779"}]
[null,"Mãe",{"$nulls":5},{"v":1000,"d":"R$ 1,000"},{"v":1000,"d":"R$ 1,000"},{"v":20,"d":"R$ 20"},{"v":70,"d":"R$ 70"},{"v":2090,"d":"R$ 2,090"},{"v":2090,"d":"R$ 2,090"}]
[null,"Grand Total",{"v":309,"d":"R$ 309"},{"v":309,"d":"R$ 309"},{"v":360,"d":"R$ 360"},{"v":199,"d":"R$ 199"},{"v":1177,"d":"R$ 1,177"},{"v":1000,"d":"R$ 1,000"},{"v":1000,"d":"R$ 1,000"},{"v":20,"d":"R$ 20"},{"v":70,"d":"R$ 70"},{"v":2090,"d":"R$ 2,090"},{"v":3267,"d":"R$ 3,267"}]
{"$rows_empty":75}
[null,"Mês","Comprador","Tipo","Valor"]
[null,"Jan","Brenda","Alimentação",{"v":74,"d":"R$ 74"}]
[null,"Jan","Pai","Alimentação",{"v":235,"d":"R$ 235"}]
[null,"Jan","Mãe","Serviços Públicos",{"v":1000,"d":"R$ 1,000"}]
[null,"Fev","Brenda","Alimentação",{"v":74,"d":"R$ 74"}]
[null,"Fev","Pai","Alimentação",{"v":235,"d":"R$ 235"}]
[null,"Fev","Mãe","Serviços Públicos",{"v":1000,"d":"R$ 1,000"}]
[null,"Mar","Brenda","Alimentação",{"v":125,"d":"R$ 125"}]
[null,"Mar","Pai","Alimentação",{"v":235,"d":"R$ 235"}]
[null,"Mar","Mãe","Serviços Públicos",{"v":20,"d":"R$ 20"}]
[null,"Abr","Brenda","Alimentação",{"v":125,"d":"R$ 125"}]
[null,"Abr","Pai","Alimentação",{"v":74,"d":"R$ 74"}]
[null,"Abr","Mãe","Serviços Públicos",{"v":70,"d":"R$ 70"}]

{"sheet":"18","index":18,"n_rows":146,"n_cols":5,"rows_kept":146}
["É importante lembrar: Se você precisar de mais detalhes, é possível adicionar muitos outros campos de linha ou de coluna. Neste exemplo há três campos de linha."]
["A Tabela Dinâmica deste exemplo vai da célula D8 à E29 e tem campos para Estação, Comprador e Tipo na coluna D, com Soma de Valor na coluna E."]
["DICA ESPECIALIZADA\nSó porque você pode adicionar vários campos, não significa que deva. Neste exemplo, não tem problema, mas, algumas vezes, muitos campos (e todos os seus recuos) podem tornar a Tabela Dinâmica muito complicada de entender para outras pessoas. "]
["Para continuar com este tutorial, pressione Ctrl+Page Down. Para ir para a planilha anterior, pressione Ctrl+Page Up."]
[]
[]
[]
[{"$nulls":3},"Row Labels","Soma de Valor"]
[{"$nulls":3},"Outono",{"v":5425,"d":"R$ 5,425"}]
[{"$nulls":3},"Mãe",{"v":5425,"d":"R$ 5,425"}]
[{"$nulls":3},"Seguro",{"v":1272,"d":"R$ 1,272"}]
[{"$nulls":3},"Aluguel",{"v":3220,"d":"R$ 3,220"}]
[{"$nulls":3},"Serviços Públicos",{"v":933,"d":"R$ 933"}]
[{"$nulls":3},"Primavera",{"v":4760,"d":"R$ 4,760"}]
[{"$nulls":3},"Pai",{"v":4760,"d":"R$ 4,760"}]
[{"$nulls":3},"Seguro",{"v":1040,"d":"R$ 1,040"}]
[{"$nulls":3},"Aluguel",{"v":2400,"d":"R$ 2,400"}]
[{"$nulls":3},"Serviços Públicos",{"v":1320,"d":"R$ 1,320"}]
[{"$nulls":3},"Verão",{"v":3473,"d":"R$ 3,473"}]
[{"$nulls":3},"Mãe",{"v":3473,"d":"R$ 3,473"}]
[{"$nulls":3},"Seguro",{"v":1080,"d":"R$ 1,080"}]
[{"$nulls":3},"Aluguel",{"v":1260,"d":"R$ 1,260"}]
[{"$nulls":3},"Serviços Públicos",{"v":1133,"d":"R$ 1,133"}]
[{"$nulls":3},"Inverno",{"v":4100,"d":"R$ 4,100"}]
[{"$nulls":3},"Pai",{"v":4100,"d":"R$ 4,100"}]
[{"$nulls":3},"Seguro",{"v":1030,"d":"R$ 1,030"}]
[{"$nulls":3},"Aluguel",{"v":1420,"d":"R$ 1,420"}]
[{"$nulls":3},"Serviços Públicos",{"v":1650,"d":"R$ 1,650"}]
[{"$nulls":3},"Grand Total",{"v":17758,"d":"R$ 17,758"}]
{"$rows_empty":68}
[null,"Comprador","Estação","Tipo","Valor"]
[null,"Pai","Inverno","Seguro",{"v":300,"d":"R$ 300"}]
[null,"Pai","Inverno","Aluguel",{"v":200,"d":"R$ 200"}]
[null,"Pai","Inverno","Serviços Públicos",{"v":400,"d":"R$ 400"}]
[null,"Pai","Inverno","Seguro",{"v":300,"d":"R$ 300"}]
[null,"Pai","Inverno","Aluguel",{"v":800,"d":"R$ 800"}]
[null,"Pai","Inverno","Serviços Públicos",{"v":400,"d":"R$ 400"}]
[null,"Pai","Inverno","Seguro",{"v":200,"d":"R$ 200"}]
[null,"Pai","Inverno","Aluguel",{"v":300,"d":"R$ 300"}]
[null,"Pai","Inverno","Serviços Públicos",{"v":450,"d":"R$ 450"}]
[null,"Pai","Inverno","Seguro",{"v":230,"d":"R$ 230"}]
[null,"Pai","Inverno","Aluguel",{"v":120,"d":"R$ 120"}]
[null,"Pai","Inverno","Serviços Públicos",{"v":400,"d":"R$ 400"}]
[null,"Pai","Primavera","Seguro",{"v":210,"d":"R$ 210"}]
[null,"Pai","Primavera","Aluguel",{"v":300,"d":"R$ 300"}]
[null,"Pai","Primavera","Serviços Públicos",{"v":400,"d":"R$ 400"}]
[null,"Pai","Primavera","Seguro",{"v":230,"d":"R$ 230"}]
[null,"Pai","Primavera","Aluguel",{"v":900,"d":"R$ 900"}]
[null,"Pai","Primavera","Serviços Públicos",{"v":300,"d":"R$ 300"}]
[null,"Pai","Primavera","Seguro",{"v":200,"d":"R$ 200"}]
[null,"Pai","Primavera","Aluguel",{"v":1000,"d":"R$ 1,000"}]
[null,"Pai","Primavera","Serviços Públicos",{"v":220,"d":"R$ 220"}]
[null,"Pai","Primavera","Seguro",{"v":400,"d":"R$ 400"}]
[null,"Pai","Primavera","Aluguel",{"v":200,"d":"R$ 200"}]
[null,"Pai","Primavera","Serviços Públicos",{"v":400,"d":"R$ 400"}]
[null,"Mãe","Verão","Seguro",{"v":100,"d":"R$ 100"}]
[null,"Mãe","Verão","Aluguel",{"v":30,"d":"R$ 30"}]
[null,"Mãe","Verão","Serviços Públicos",{"v":123,"d":"R$ 123"}]
[null,"Mãe","Verão","Seguro",{"v":300,"d":"R$ 300"}]
[null,"Mãe","Verão","Aluguel",{"v":350,"d":"R$ 350"}]
[null,"Mãe","Verão","Serviços Públicos",{"v":230,"d":"R$ 230"}]
[null,"Mãe","Verão","Seguro",{"v":120,"d":"R$ 120"}]
[null,"Mãe","Verão","Aluguel",{"v":640,"d":"R$ 640"}]
[null,"Mãe","Verão","Serviços Públicos",{"v":530,"d":"R$ 530"}]
[null,"Mãe","Verão","Seguro",{"v":560,"d":"R$ 560"}]
[null,"Mãe","Verão","Aluguel",{"v":240,"d":"R$ 240"}]
[null,"Mãe","Verão","Serviços Públicos",{"v":250,"d":"R$ 250"}]
[null,"Mãe","Outono","Seguro",{"v":62,"d":"R$ 62"}]
[null,"Mãe","Outono","Aluguel",{"v":600,"d":"R$ 600"}]
[null,"Mãe","Outono","Serviços Públicos",{"v":340,"d":"R$ 340"}]
[null,"Mãe","Outono","Seguro",{"v":205,"d":"R$ 205"}]
[null,"Mãe","Outono","Aluguel",{"v":500,"d":"R$ 500"}]
[null,"Mãe","Outono","Serviços Públicos",{"v":403,"d":"R$ 403"}]
[null,"Mãe","Outono","Seguro",{"v":503,"d":"R$ 503"}]
[null,"Mãe","Outono","Aluguel",{"v":2000,"d":"R$ 2,000"}]
[null,"Mãe","Outono","Serviços Públicos",{"v":140,"d":"R$ 140"}]
[null,"Mãe","Outono","Seguro",{"v":502,"d":"R$ 502"}]
[null,"Mãe","Outono","Aluguel",{"v":120,"d":"R$ 120"}]
[null,"Mãe","Outono","Serviços Públicos",{"v":50,"d":"R$ 50"}]

{"sheet":"19","index":19,"n_rows":55,"n_cols":5,"rows_kept":55}
["Pronto para praticar mais? Revise os dados abaixo nas células B7 a E55. Quando estiver pronto, vá para a próxima planilha e pratique o que aprendeu até agora. "]
["Não há necessidade de revisar todas as linhas de dados. Revise apenas os nomes dos campos na linha 7. Você trabalhará com eles na próxima planilha. "]
["Para continuar com este tutorial, pressione Ctrl+Page Down. Para ir para a planilha anterior, pressione Ctrl+Page Up."]
[]
[]
[]
[null,"Estação","Repr. de vendas","Produtos","Unidades vendidas"]
[null,"Inverno","Julieta","Laranjas",300]
[null,"Inverno","Pedro","Toranjas",200]
[null,"Inverno","Davi","Maçãs",400]
[null,"Inverno","Julieta","Bananas",300]
[null,"Inverno","Pedro","Laranjas",800]
[null,"Inverno","Davi","Toranjas",400]
[null,"Inverno","Julieta","Maçãs",200]
[null,"Inverno","Pedro","Bananas",300]
[null,"Inverno","Davi","Laranjas",450]
[null,"Inverno","Julieta","Toranjas",230]
[null,"Inverno","Pedro","Maçãs",120]
[null,"Inverno","Davi","Bananas",400]
[null,"Primavera","Julieta","Beterrabas",210]
[null,"Primavera","Pedro","Batatas",300]
[null,"Primavera","Davi","Alface",400]
[null,"Primavera","Julieta","Rabanetes",230]
[null,"Primavera","Pedro","Beterrabas",900]
[null,"Primavera","Davi","Batatas",300]
[null,"Primavera","Julieta","Alface",200]
[null,"Primavera","Pedro","Rabanetes",1000]
[null,"Primavera","Davi","Beterrabas",220]
[null,"Primavera","Julieta","Batatas",400]
[null,"Primavera","Pedro","Alface",200]
[null,"Primavera","Davi","Rabanetes",400]
[null,"Verão","Julieta","Mirtilos",100]
[null,"Verão","Pedro","Morangos",30]
[null,"Verão","Davi","Uvas",123]
[null,"Verão","Julieta","Abóboras",300]
[null,"Verão","Pedro","Mirtilos",350]
[null,"Verão","Davi","Morangos",230]
[null,"Verão","Julieta","Uvas",120]
[null,"Verão","Pedro","Abóboras",640]
[null,"Verão","Davi","Mirtilos",530]
[null,"Verão","Julieta","Morangos",560]
[null,"Verão","Pedro","Uvas",240]
[null,"Verão","Davi","Abóboras",250]
[null,"Outono","Julieta","Abóbora-menina",62]
[null,"Outono","Pedro","Abobrinha",600]
[null,"Outono","Davi","Maçãs",340]
[null,"Outono","Julieta","Laranjas",205]
[null,"Outono","Pedro","Abóbora-menina",500]
[null,"Outono","Davi","Abobrinha",403]
[null,"Outono","Julieta","Maçãs",503]
[null,"Outono","Pedro","Laranjas",2000]
[null,"Outono","Davi","Abóbora-menina",140]
[null,"Outono","Julieta","Abobrinha",502]
[null,"Outono","Pedro","Maçãs",120]
[null,"Outono","Davi","Laranjas",50]

{"sheet":"20","index":20,"n_rows":17,"n_cols":11,"rows_kept":17}
["1. A Área da Tabela Dinâmica deste exemplo está nas células B12 a C17. Navegue para qualquer uma dessas células. \n\n"]
["2. Pressione Alt+JP, LI para iniciar a Lista de Campos da Tabela Dinâmica. O foco usará por padrão a caixa de texto de Pesquisar: \"Digite palavras para Pesquisarr para edição\". Não digite nada, em vez disso, pressione Tab uma vez. OBSERVAÇÃO: se a lista de campos não iniciar, pressione Alt+JP, LI novamente."]
["3. Pressione as teclas de direção para ir para o campo Repr. de vendas. Pressione a BARRA DE ESPAÇOS para adicionar o campo Repr. de vendas à área Linhas. Se quiser exibir detalhes de Repr. de vendas na área Colunas, use a tecla Tab para ir para o campo Repr. de vendas na seção Linha, pressione a BARRA DE ESPAÇOS e selecione \"Mover para Rótulos de Coluna\". Pressione a tecla ESC para sair do painel de Campos da Tabela Dinâmica. "]
["4. Determine quem vendeu mais itens no outono, depois faça uma seleção na célula K8. "]
["Para continuar com este tutorial, pressione Ctrl+Page Down. Para ir para a planilha anterior, pressione Ctrl+Page Up."]
[]
[{"$nulls":10},"Escolha um:"]
[]
[{"$nulls":10},{"$f":"IF($K$8=\"Pedro\",\"Você está certo!\",IF($K$8=\"Davi\",\"Tente novamente...\",IF($K$8=\"Julieta\",\"Não é bem assim...\",IF($K$8=\" \",\" \",\" \"))))","v":" "}]
[]
[]
[null,"Row Labels","Soma de Unidades vendidas"]
[null,"Outono",{"v":5425,"d":"5,425"}]
[null,"Primavera",{"v":4760,"d":"4,760"}]
[null,"Verão",{"v":3473,"d":"3,473"}]
[null,"Inverno",{"v":4100,"d":"4,100"}]
[null,"Grand Total",{"v":17758,"d":"17,758"}]

{"sheet":"21","index":21,"n_rows":14,"n_cols":10,"rows_kept":14}
["1. Clique na célula B13 para ativar a Tabela Dinâmica chamada \"Soma de unidades vendidas\".\n\n"]
["2. Pressione Alt+JP, LI para iniciar a Lista de Campos da Tabela Dinâmica. O foco usará por padrão a caixa de texto de Pesquisar: \"Digite palavras para Pesquisarr para edição\". Não digite nada, em vez disso, pressione Tab uma vez. OBSERVAÇÃO: se a lista de campos não iniciar, pressione Alt+JP, LI novamente."]
["3. Use as teclas de direção e a BARRA DE ESPAÇOS para expandir o exemplo em uma Tabela Dinâmica vertical com as estações à esquerda e os repr. de vendas pretendidos sob as estações.Pressione a tecla ESC para sair do painel Campos da Tabela Dinâmica. "]
["Para continuar com este tutorial, pressione Ctrl+Page Down. Para ir para a planilha anterior, pressione Ctrl+Page Up."]
[{"$nulls":9},{"$f":"IF(AND(B$14=\"Inverno\",$C$17=1420),\"Muito bem! Você colocou um campo\",\" \")","v":" "}]
[{"$nulls":9},{"$f":"IF(AND(B$14=\"Inverno\",$C$17=1420),\"de linha secundário. Agora role\",\" \")","v":" "}]
[{"$nulls":9},{"$f":"IF(AND(B$14=\"Inverno\",$C$17=1420),\"para baixo e clique em Próximo.\",\" \")","v":" "}]
[]
[]
[]
[]
[]
[null,"Soma de unidades vendidas"]
[null,{"v":17758,"d":"17,758"}]

{"sheet":"22","index":22,"n_rows":14,"n_cols":10,"rows_kept":14}
["1. Clique na célula B13 para ativar a Tabela Dinâmica chamada \"Soma de unidades vendidas\"."]
["2. Pressione Alt+JP, LI para iniciar a Lista de Campos da Tabela Dinâmica. O foco usará por padrão a caixa de texto de Pesquisar: \"Digite palavras para Pesquisarr para edição\". Não digite nada, em vez disso, pressione Tab uma vez. OBSERVAÇÃO: se a lista de campos não iniciar, pressione Alt+JP, LI novamente."]
["3. Use as teclas de direção e a BARRA DE ESPAÇOS para alterar o exemplo de forma que mostre cada produto em sua própria linha, e cada estação em sua própria coluna."]
["Para continuar com este tutorial, pressione Ctrl+Page Down. Para ir para a planilha anterior, pressione Ctrl+Page Up.",{"$nulls":8},{"$f":"IF(AND($B$15=\"Abóbora-menina\",$G$28=483),\"Muito bem! Você colocou um\",\" \")","v":" "}]
[{"$nulls":9},{"$f":"IF(AND($B$15=\"Abóbora-menina\",$G$28=483),\"campo de linha à esquerda e\",\" \")","v":" "}]
[{"$nulls":9},{"$f":"IF(AND($B$15=\"Abóbora-menina\",$G$28=483),\"um campo de coluna com quatro\",\" \")","v":" "}]
[{"$nulls":9},{"$f":"IF(AND($B$15=\"Abóbora-menina\",$G$28=483),\"novas colunas. Role para\",\" \")","v":" "}]
[{"$nulls":9},{"$f":"IF(AND($B$15=\"Abóbora-menina\",$G$28=483),\"baixo e clique em Próximo...\",\" \")","v":" "}]
[]
[]
[]
[]
[null,"Soma de Unidades vendidas"]
[null,{"v":17758,"d":"17,758"}]

{"sheet":"23","index":23,"n_rows":16,"n_cols":18,"rows_kept":16}
["1. Clique na célula B13 para ativar a Tabela Dinâmica chamada \"Soma de unidades vendidas\".\n\n"]
["2. Pressione Alt+JP, LI para iniciar a Lista de Campos da Tabela Dinâmica. O foco usará por padrão a caixa de texto de Pesquisar: \"Digite palavras para Pesquisarr para edição\". Não digite nada, em vez disso, pressione Tab uma vez. OBSERVAÇÃO: se a lista de campos não iniciar, pressione Alt+JP, LI novamente."]
["3. Use a tecla Tab, as teclas de direção e a BARRA DE ESPAÇOS para alterar o exemplo de forma que mostre Repr. de vendas à esquerda com as Estações recuadas abaixo."]
["Para continuar com este tutorial, pressione Ctrl+Page Down. Para ir para a planilha anterior, pressione Ctrl+Page Up."]
[{"$nulls":7},{"$f":"IF(AND($B$14=\"Davi\",$C$14=5036),\"Muito bem! Agora é mais fácil\",\" \")","v":" "}]
[{"$nulls":7},{"$f":"IF(AND($B$14=\"Davi\",$C$14=5036),\"ler os dados. Role para baixo\",\" \")","v":" "}]
[{"$nulls":7},{"$f":"IF(AND($B$14=\"Davi\",$C$14=5036),\"e clique em Próximo...\",\" \")","v":" "}]
[]
[]
[]
[]
[]
[null,null,"Column Labels"]
[null,null,"Davi",{"$nulls":3},"Davi Total","Pedro",{"$nulls":3},"Pedro Total","Julieta",{"$nulls":3},"Julieta Total","Grand Total"]
[null,null,"Outono","Primavera","Verão","Inverno",null,"Outono","Primavera","Verão","Inverno",null,"Outono","Primavera","Verão","Inverno"]
[null,"Soma de Unidades vendidas",933,{"v":1320,"d":"1,320"},{"v":1133,"d":"1,133"},{"v":1650,"d":"1,650"},{"v":5036,"d":"5,036"},{"v":3220,"d":"3,220"},{"v":2400,"d":"2,400"},{"v":1260,"d":"1,260"},{"v":1420,"d":"1,420"},{"v":8300,"d":"8,300"},{"v":1272,"d":"1,272"},{"v":1040,"d":"1,040"},{"v":1080,"d":"1,080"},{"v":1030,"d":"1,030"},{"v":4422,"d":"4,422"},{"v":17758,"d":"17,758"}]

{"sheet":"24","index":24,"n_rows":14,"n_cols":9,"rows_kept":14}
["1. Clique na célula B13 para ativar a Tabela Dinâmica chamada \"Soma de unidades vendidas\"."]
["2. Pressione Alt+JP, LI para iniciar a Lista de Campos da Tabela Dinâmica. O foco usará por padrão a caixa de texto de Pesquisar: \"Digite palavras para Pesquisarr para edição\". Não digite nada, em vez disso, pressione Tab uma vez. OBSERVAÇÃO: se a lista de campos não iniciar, pressione Alt+JP, LI novamente."]
["3. Use as teclas de direção, Tab e BARRA DE ESPAÇOS para alterar o exemplo de forma que cada Repr. de vendas tenha seus próprios campos de coluna com as Estações à esquerda e os Produtos abaixo disso."]
["4. Selecione a célula I9 e escolha quantas toranjas Davi vendeu no inverno."]
["Para continuar com este tutorial, pressione Ctrl+Page Down. Para ir para a planilha anterior, pressione Ctrl+Page Up."]
[]
[]
[{"$nulls":8},"Escolha um:"]
[]
[{"$nulls":8},{"$f":"IF($I$9=400,\"Você está certo!\",IF($I$9=530,\"Tente novamente...\",IF($I$9=123,\"Não é bem assim...\",\" \")))","v":" "}]
[]
[]
[null,"Soma de unidades vendidas"]
[null,{"v":17758,"d":"17,758"}]

{"sheet":"Saiba mais","index":25,"n_rows":7,"n_cols":1,"rows_kept":7}
["Bom trabalho. As Tabelas Dinâmicas não são ótimas?"]
["Continue aprendendo! Sempre há mais para aprender."]
["Mais informações dinâmicas\nDescubra mais coisas que você pode fazer lendo este artigo útil sobre Tabelas Dinâmicas."]
["Sobre a atualização\nLeia este artigo importante sobre como atualizar Tabelas Dinâmicas. "]
["Comunidade\nConecte-se a outros fãs do Excel. Eles podem ajudar você e você pode ajudá-los."]
[]
[" "]